bitfinex-derivatives/quotes_SOLF0:USTF0_20251125
["timestamp","ask_amount","ask_price","bid_price","bid_amount"]
[1764059762626,3.13,136.11,136.05,3.01]
[1764059763229,3.13,136.1,136.06,9.6267]
[1764059763640,3.17951952,136.09,136.07,0.04981398]
[1764059764646,0.04951952,136.09,136.07,0.04981398]
[1764059764937,0.04951952,136.09,136.07,3.05981398]
[1764059766044,0.04951952,136.09,136.07,9.67621398]
[1764059766336,0.04951952,136.09,136.08,3.01]
[1764059771035,9.7435,136.14,136.1,3.01]
[1764059772046,0.04776002,136.13,136.11,0.05179135]
[1764059772243,3.17776002,136.13,136.11,0.05179135]
[1764059773447,0.04776002,136.13,136.11,3.06179135]
[1764059773751,0.04776002,136.13,136.11,0.05179135]
[1764059775758,0.04776002,136.13,136.11,3.06179135]
[1764059775958,0.04776002,136.13,136.12,3.01]
[1764059776551,0.04776002,136.13,136.11,9.67609135]
[1764059777255,0.04776002,136.13,136.12,3.17]
[1764059778655,3.08,136.19,136.13,9.7832]
[1764059778961,3.08,136.17,136.13,9.7832]
[1764059779155,5.97049242,136.16,136.14,3.17]
[1764059779356,5.97049242,136.15,136.14,3.17]
[1764059780060,0.05243913,136.16,136.14,3.17]
[1764059783561,3.08,136.14,136.07,3.17]
[1764059784358,9.6931,136.14,136.1,3.17]
[1764059784555,3.13486042,136.13,136.11,0.05458256]
[1764059785461,3.08,136.12,136.11,0.05458256]
[1764059799380,8.56039823,136.12,136.11,0.05458256]
[1764059803171,3.08,136.12,136.11,0.05458256]
[1764059803372,9.6941,136.12,136.11,0.05458256]
[1764059804883,3.13486042,136.13,136.11,0.05458256]
[1764059805682,9.74856042,136.13,136.11,0.05458256]
[1764059805883,3.08,136.12,136.11,0.05458256]
[1764059806486,0.05486042,136.13,136.11,3.22458256]
[1764059808087,3.0,136.12,136.11,0.05458256]
[1764059808287,8.47220771,136.12,136.11,0.05458256]
[1764059808880,3.0,136.12,136.11,0.05458256]
[1764059810286,8.34361814,136.12,136.11,0.05458256]
[1764059811789,3.0,136.12,136.11,0.05458256]
[1764059811980,8.34806287,136.12,136.11,0.05458256]
[1764059813696,3.0,136.1,136.07,9.12229826]
[1764059813988,3.0,136.08,136.05,18.79969826]
[1764059814179,3.0,136.08,136.05,9.6774]
[1764059814790,3.05269112,136.08,136.05,3.11597755]
[1764059815085,0.05269112,136.08,136.05,18.85567581]
[1764059815285,3.05269112,136.08,136.05,12.23827581]
[1764059816190,3.05269112,136.08,136.05,9.73337755]
[1764059817191,3.05269112,136.08,136.06,3.08]
[1764059817582,3.05269112,136.08,136.05,0.05597755]
[1764059818284,3.01,136.06,136.05,0.05597755]
[1764059823188,3.01,136.03,135.98,9.12229826]
[1764059823393,3.01,136.03,135.99,3.08]
[1764059824096,0.0508473,136.02,136.0,0.04903873]
[1764059824285,0.0508473,136.02,136.0,3.12903873]
[1764059824986,0.0508473,136.02,136.0,9.74873873]
[1764059825188,0.0508473,136.02,136.01,3.08]
[1764059825386,3.01,136.06,136.01,3.08]
[1764059826382,3.01,136.04,136.01,3.08]
[1764059826781,102.8885,136.12,136.04,3.08]
[1764059826782,5.30311268,136.09,136.04,3.08]
[1764059826988,3.01,136.1,136.05,3.08]
[1764059827395,3.01,136.1,136.07,9.6964]
[1764059827793,3.01,136.1,136.07,9.74944019]
[1764059828096,3.06577029,136.1,136.07,0.05304019]
[1764059828697,3.06577029,136.1,136.07,3.13304019]
[1764059828994,3.06577029,136.1,136.07,0.05304019]
[1764059830100,3.06577029,136.1,136.07,3.13304019]
[1764059830395,3.06577029,136.1,136.07,0.05304019]
[1764059831096,0.05577029,136.1,136.07,3.13304019]
[1764059831485,0.05577029,136.1,136.09,3.08]
[1764059832094,3.01,136.14,136.11,3.08]
[1764059832795,3.01,136.14,136.1,6.6149]
[1764059833101,0.05635035,136.13,136.11,0.05510672]
[1764059833803,3.06635035,136.13,136.11,0.05510672]
[1764059834401,0.05635035,136.13,136.11,3.13510672]
[1764059834599,0.05635035,136.13,136.11,9.74950672]
[1764059834897,0.05635035,136.13,136.12,3.08]
[1764059836294,0.05635035,136.13,136.11,0.05510672]
[1764059836498,3.06635035,136.13,136.11,0.05510672]
[1764059837997,3.05,136.12,136.11,0.05510672]
[1764059838497,5.18049904,136.12,136.11,0.05510672]
[1764059838693,11.79479904,136.12,136.07,6.6164]
[1764059838894,3.05,136.11,136.05,3.12]
[1764059839507,3.05,136.09,136.05,9.7373]
[1764059839898,0.05101124,136.08,136.06,0.05313212]
[1764059840398,0.05101124,136.08,136.06,3.17313212]
[1764059840599,0.05101124,136.08,136.06,0.05313212]
[1764059841099,3.10101124,136.08,136.06,0.05313212]
[1764059841300,3.05,136.07,136.02,12.24229826]
[1764059841599,3.05,136.07,136.02,3.12]
[1764059842188,3.05,136.06,136.01,9.12229826]
[1764059842491,3.05,136.06,135.98,102.9884]
[1764059842492,3.05,136.04,136.02,0.04701312]
[1764059844502,3.10513484,136.05,136.02,3.16701312]
[1764059844702,3.10513484,136.05,136.02,0.04701312]
[1764059850806,3.10513484,136.05,136.02,9.78581312]
[1764059851001,0.05513484,136.05,136.03,3.12]
[1764059851603,0.05513484,136.05,136.03,9.7384]
[1764059851806,0.05513484,136.05,136.04,3.12]
[1764059853009,0.05513484,136.05,136.03,6.6184]
[1764059853010,8.35021304,136.1,136.06,9.7369]
[1764059853210,3.05,136.1,136.07,3.12]
[1764059853397,3.05,136.1,136.08,6.6159]
[1764059853599,3.05,136.12,136.08,3.12]
[1764059854002,0.04656064,136.11,136.09,9.78585746]
[1764059854205,0.04656064,136.11,136.1,3.12]
[1764059859217,3.09656064,136.11,136.09,0.05045746]
[1764059867718,3.09656064,136.11,136.09,3.23045746]
[1764059868509,0.04656064,136.11,136.1,3.18]
[1764059869421,0.04656064,136.11,136.09,9.84575746]
[1764059870717,0.04656064,136.11,136.1,3.18]
[1764059878024,0.04656064,136.11,136.09,6.66575746]
[1764059878225,3.23656064,136.11,136.09,6.66575746]
[1764059879120,0.04656064,136.11,136.09,9.68575746]
[1764059880127,0.04656064,136.11,136.09,3.07045746]
[1764059880621,3.23656064,136.11,136.09,0.05045746]
[1764059881321,3.23656064,136.11,136.04,9.12229826]
[1764059881518,3.19,136.09,136.03,12.14229826]
[1764059881722,3.19,136.09,136.0,102.9735]
[1764059881723,3.19,136.07,136.02,9.12229826]
[1764059881921,3.19,136.07,136.0,16.70344739]
[1764059881922,2.13049904,136.06,136.0,12.14229826]
[1764059882123,0.05481895,136.04,136.02,0.05570633]
[1764059882327,3.19,136.03,136.02,0.05570633]
[1764059883815,3.19,136.03,135.98,3.02]
[1764059884016,3.19,136.01,135.95,3.02]
[1764059884428,3.19,136.0,135.95,3.02]
[1764059884923,3.24251807,135.99,135.96,0.05482095]
[1764059886128,0.05251807,135.99,135.96,3.07482095]
[1764059886723,3.24251807,135.99,135.96,0.05482095]
[1764059886922,0.05251807,135.99,135.96,3.07482095]
[1764059888228,0.05251807,135.99,135.97,3.02]
[1764059889135,0.05251807,135.99,135.97,9.6411]
[1764059889930,0.05251807,135.99,135.98,3.02]
[1764059890131,3.19,136.05,135.99,6.6201]
[1764059890329,3.19,136.05,135.99,9.6401]
[1764059890929,3.19,136.05,136.0,9.6397]
[1764059891129,3.19,136.05,136.01,0.04658228]
[1764059891338,3.2457755,136.04,136.01,0.04658228]
[1764059895239,3.2457755,136.04,136.01,3.06658228]
[1764059895642,3.2457755,136.04,136.01,0.04658228]
[1764059897239,3.06,136.02,136.01,0.04658228]
[1764059898049,3.06,136.0,135.95,3.02]
[1764059899139,0.05530935,135.99,135.96,3.20939161]
[1764059899443,3.11530935,135.99,135.96,3.20939161]
[1764059900030,3.11530935,135.99,135.96,0.04939161]
[1764059900434,3.11530935,135.99,135.96,3.20939161]
[1764059901247,3.11530935,135.99,135.96,0.04939161]
[1764059902243,3.11530935,135.99,135.96,3.20939161]
[1764059904047,3.11530935,135.99,135.96,0.04939161]
[1764059904541,3.11530935,135.99,135.96,3.20939161]
[1764059904748,3.11530935,135.99,135.96,0.04939161]
[1764059904940,3.11530935,135.99,135.96,3.20939161]
[1764059905543,0.05530935,135.99,135.97,3.16]
[1764059906549,0.05530935,135.99,135.97,6.6213]
[1764059907148,3.11530935,135.99,135.96,0.04939161]
[1764059907535,0.05530935,135.99,135.96,3.20939161]
[1764059908152,3.11530935,135.99,135.96,3.20939161]
[1764059908947,0.05530935,135.99,135.96,3.20939161]
[1764059910049,0.05530935,135.99,135.97,6.6212]
[1764059911349,0.05530935,135.99,135.97,9.7812]
[1764059912453,3.11530935,135.99,135.96,0.04939161]
[1764059912958,3.06,135.98,135.96,0.04939161]
[1764059913950,0.05530935,135.99,135.96,3.20939161]
[1764059914155,3.11530935,135.99,135.96,3.20939161]
[1764059915452,3.11530935,135.99,135.96,9.83119161]
[1764059916252,0.05530935,135.99,135.97,9.7813]
[1764059916456,0.05530935,135.99,135.98,3.16]
[1764059916649,0.05530935,135.99,135.97,6.6213]
[1764059918553,0.05530935,135.99,135.97,9.7813]
[1764059919845,3.11530935,135.99,135.97,9.7813]
[1764059921056,0.05530935,135.99,135.97,9.7813]
[1764059921257,0.05530935,135.99,135.98,3.16]
[1764059923652,3.06,136.04,136.0,3.16]
[1764059924164,3.06,136.04,136.0,6.6198]
[1764059924655,3.10706056,136.03,136.01,0.04709128]
[1764059926648,3.06,136.02,136.01,0.04709128]
[1764059928953,8.60874403,136.02,136.01,0.04709128]
[1764059929357,8.60874403,136.02,135.9,103.0526]
[1764059929358,3.16,136.0,135.93,3.05]
[1764059929859,3.16,135.98,135.93,3.05]
[1764059930252,3.21080775,135.97,135.94,3.10490626]
[1764059931062,3.21080775,135.97,135.94,9.72760626]
[1764059931252,3.21080775,135.97,135.94,0.05490626]
[1764059931760,9.83230775,135.97,135.94,0.05490626]
[1764059932062,3.16,135.96,135.94,0.05490626]
[1764059933661,0.05080775,135.97,135.94,3.10490626]
[1764059934257,0.05080775,135.97,135.94,9.72760626]
[1764059934562,0.05080775,135.97,135.95,3.05]
[1764059934965,0.05080775,135.97,135.96,3.05]
[1764059936160,3.16,136.02,135.98,3.05]
[1764059937254,3.17393974,136.01,135.99,0.05281918]
[1764059941662,3.17393974,136.01,135.99,3.10281918]
[1764059941967,3.17393974,136.01,135.99,0.05281918]
[1764059945564,0.05393974,136.01,135.99,3.10281918]
[1764059945960,3.17393974,136.01,135.99,0.05281918]
[1764059947468,3.17393974,136.01,135.99,3.10281918]
[1764059947667,0.05393974,136.01,135.99,3.10281918]
[1764059947871,0.05393974,136.01,135.99,9.72311918]
[1764059948062,0.05393974,136.01,136.0,3.05]
[1764059950064,3.17393974,136.01,135.99,0.05281918]
[1764059950264,3.17393974,136.01,135.99,3.10281918]
[1764059952466,0.05393974,136.01,135.99,3.10281918]
[1764059953168,3.17393974,136.01,135.99,3.10281918]
[1764059953469,3.17393974,136.01,135.99,0.05281918]
[1764059954472,0.05393974,136.01,135.99,3.10281918]
[1764059955372,3.17393974,136.01,135.99,3.10281918]
[1764059957378,3.17393974,136.01,135.99,9.72311918]
[1764059957773,0.05393974,136.01,136.0,3.02]
[1764059959172,0.05393974,136.01,135.99,6.67311918]
[1764059959376,0.05393974,136.01,135.99,9.69311918]
[1764059959682,3.15393974,136.01,135.99,3.07281918]
[1764059960380,3.15393974,136.01,135.99,6.67311918]
[1764059960879,3.15393974,136.01,135.99,9.69311918]
[1764059961480,0.05393974,136.01,136.0,3.02]
[1764059966789,0.05393974,136.01,136.0,9.6399]
[1764059968292,3.1,136.04,136.02,3.02]
[1764059968793,3.1,136.06,136.02,3.02]
[1764059968993,9.06246376,136.1,136.02,3.02]
[1764059968994,3.1,136.09,136.03,3.02]
[1764059969189,0.04851122,136.07,136.06,3.02]
[1764059969591,0.04851122,136.07,136.06,9.6369]
[1764059970393,0.04851122,136.07,136.06,3.02]
[1764059971291,0.04851122,136.07,136.05,0.05253969]
[1764059971489,0.04851122,136.07,136.05,3.07253969]
[1764059971697,0.04851122,136.07,136.05,9.68993969]
[1764059972390,0.04851122,136.07,136.05,3.07253969]
[1764059973184,0.04851122,136.07,136.05,9.68993969]
[1764059973384,0.04851122,136.07,136.06,3.02]
[1764059976103,3.1,136.13,136.09,3.02]
[1764059976500,3.1,136.13,136.1,9.635]
[1764059976702,3.1,136.13,136.11,3.02]
[1764059977092,3.14654366,136.13,136.11,0.05335727]
[1764059977900,5.51126676,136.12,136.11,0.05335727]
[1764059978100,3.1,136.12,136.11,0.05335727]
[1764059978595,3.14654366,136.13,136.11,0.05335727]
[1764059978795,9.76024366,136.13,136.11,0.05335727]
[1764059979703,3.1,136.12,136.11,0.05335727]
[1764059985309,3.1,136.1,136.06,6.6167]
[1764059985810,3.1,136.1,136.06,9.6367]
[1764059986512,3.15094926,136.09,136.07,0.04811888]
[1764059988003,9.76654926,136.09,136.07,0.04811888]
[1764059988201,3.11,136.08,136.07,0.04811888]
[1764059997526,9.83654926,136.09,136.07,0.04811888]
[1764059998226,3.17,136.08,136.07,0.04811888]
[1764059998629,6.66654926,136.09,136.07,3.03811888]
[1764059998922,9.83654926,136.09,136.07,0.04811888]
[1764060001027,3.17,136.08,136.07,0.04811888]
[1764060003229,0.05094926,136.09,136.07,3.03811888]
[1764060003927,5.50295871,136.13,136.1,9.6046]
[1764060004123,3.17,136.14,136.1,9.6046]
[1764060004630,3.17,136.14,136.11,2.99]
[1764060005019,3.22572589,136.14,136.11,3.03691932]
[1764060005620,3.17,136.13,136.11,0.04691932]
[1764060007623,3.22572589,136.14,136.11,3.03691932]
[1764060008029,0.05572589,136.14,136.11,9.65131932]
[1764060008324,0.05572589,136.14,136.12,2.99]
[1764060008528,0.05572589,136.14,136.12,9.6039]
[1764060008724,0.05572589,136.14,136.13,2.99]
[1764060011831,0.05572589,136.14,136.11,3.03691932]
[1764060012639,3.22572589,136.14,136.11,3.03691932]
[1764060012837,3.22572589,136.14,136.11,0.04691932]
[1764060014038,3.22572589,136.14,136.11,3.03691932]
[1764060016831,3.17,136.13,136.11,0.04691932]
[1764060017436,2.94,136.12,136.11,0.04691932]
[1764060019241,8.42713019,136.12,136.11,0.04691932]
[1764060019444,2.94,136.12,136.11,0.04691932]
[1764060019742,8.42807589,136.12,136.11,0.04691932]
[1764060020141,2.94,136.12,136.11,0.04691932]
[1764060020643,8.42691957,136.12,136.11,0.04691932]
[1764060020844,2.94,136.12,136.11,0.04691932]
[1764060021442,8.42626616,136.12,136.11,0.04691932]
[1764060021745,2.94,136.09,136.02,3.06]
[1764060022844,0.05553909,136.07,136.05,3.06]
[1764060024240,0.05553909,136.07,136.05,9.6774]
[1764060024845,0.05553909,136.07,136.06,3.06]
[1764060026247,2.94,136.11,136.08,3.06]
[1764060026446,6.6144,136.12,136.08,3.06]
[1764060026649,2.94,136.12,136.08,3.06]
[1764060026852,2.94,136.12,136.09,3.06]
[1764060027354,2.99006112,136.12,136.09,3.11418148]
[1764060028353,2.99006112,136.12,136.09,9.72958148]
[1764060028754,0.05006112,136.12,136.1,3.06]
[1764060033956,0.05006112,136.12,136.11,3.06]
[1764060041754,0.05006112,136.12,136.09,0.05418148]
[1764060041961,0.05006112,136.12,136.1,3.06]
[1764060042551,0.05006112,136.12,136.1,9.675]
[1764060042759,0.05006112,136.12,136.11,3.06]
[1764060058558,3.08,136.16,136.14,3.1]
[1764060058761,3.08,136.17,136.14,3.1]
[1764060058960,5.49826171,136.18,136.14,3.1]
[1764060059160,9.6909,136.19,136.14,3.1]
[1764060059669,0.04669962,136.18,136.16,3.1]
[1764060060368,3.12669962,136.18,136.16,3.1]
[1764060060660,0.04669962,136.18,136.16,3.1]
[1764060061766,5.49408294,136.22,136.16,3.1]
[1764060062065,3.08,136.22,136.18,3.1]
[1764060062768,3.13285578,136.21,136.19,0.05468026]
[1764060063265,0.05285578,136.21,136.19,3.15468026]
[1764060063659,3.08,136.25,136.19,3.15468026]
[1764060063861,3.08,136.25,136.22,3.1]
[1764060064660,3.13001616,136.25,136.22,3.14906831]
[1764060065365,3.08,136.24,136.22,3.14906831]
[1764060066362,0.05001616,136.25,136.22,3.14906831]
[1764060067073,3.13001616,136.25,136.22,3.14906831]
[1764060068766,0.05001616,136.25,136.22,3.14906831]
[1764060069866,3.13001616,136.25,136.22,3.14906831]
[1764060071273,3.08,136.23,136.22,0.04906831]
[1764060073474,8.6072113,136.25,136.22,3.14906831]
[1764060073781,0.05001616,136.25,136.24,3.1]
[1764060073982,3.08,136.31,136.25,3.1]
[1764060073983,8.5570125,136.31,136.25,3.1]
[1764060074184,3.08,136.31,136.25,3.1]
[1764060074383,3.08,136.31,136.28,3.1]
[1764060074880,3.12684306,136.31,136.28,3.15477615]
[1764060075774,0.04684306,136.31,136.29,3.1]
[1764060075980,3.12684306,136.31,136.28,9.76097615]
[1764060076276,0.04684306,136.31,136.29,3.1]
[1764060077578,0.04684306,136.31,136.29,9.7056]
[1764060077785,0.04684306,136.31,136.3,2.92]
[1764060078983,0.04684306,136.31,136.29,9.5256]
[1764060079371,0.04684306,136.31,136.29,2.92]
[1764060084696,3.15684306,136.31,136.28,2.97477615]
[1764060085496,0.04684306,136.31,136.28,2.97477615]
[1764060087001,3.15684306,136.31,136.28,2.97477615]
[1764060094498,0.04684306,136.31,136.29,2.92]
[1764060095506,0.04684306,136.31,136.3,2.92]
[1764060098098,3.15684306,136.31,136.29,9.5258]
[1764060098301,3.15684306,136.31,136.28,2.97477615]
[1764060098809,0.04684306,136.31,136.28,2.97477615]
[1764060100011,0.04684306,136.31,136.3,2.92]
[1764060110119,3.16684306,136.31,136.29,3.09]
[1764060110314,3.16684306,136.31,136.28,3.14477615]
[1764060110919,9.77174306,136.31,136.28,3.14477615]
[1764060112124,6.6054,136.3,136.28,3.14477615]
[1764060112320,9.7254,136.3,136.28,3.14477615]
[1764060112522,3.12,136.29,136.28,0.05477615]
[1764060112817,6.6054,136.3,136.28,3.14477615]
[1764060113020,3.12,136.34,136.29,3.09]
[1764060113921,3.12,136.32,136.29,3.09]
[1764060114824,0.04829417,136.33,136.29,3.09]
[1764060115127,0.04829417,136.33,136.3,3.09]
[1764060115428,8.55044518,136.37,136.32,3.09]
[1764060115728,3.12,136.39,136.32,3.09]
[1764060115923,5.43203835,136.38,136.32,3.09]
[1764060116225,3.12,136.39,136.32,3.09]
[1764060116432,0.04246733,136.37,136.35,3.09]
[1764060117324,3.21246733,136.37,136.34,0.04795938]
[1764060117625,3.17,136.35,136.34,0.04795938]
[1764060118417,8.61250326,136.35,136.34,0.04795938]
[1764060120929,3.17,136.35,136.34,0.04795938]
[1764060124120,3.21246733,136.37,136.34,0.04795938]
[1764060124427,3.21246733,136.37,136.31,2.93]
[1764060124428,3.17,136.35,136.27,2.93]
[1764060124623,5.29422038,136.34,136.27,2.93]
[1764060125020,11.89772038,136.34,136.29,2.93]
[1764060125216,3.22304658,136.33,136.29,2.93]
[1764060125430,3.22304658,136.33,136.3,2.98524628]
[1764060127034,0.05304658,136.33,136.3,2.98524628]
[1764060127425,0.05304658,136.33,136.32,2.93]
[1764060134636,0.05304658,136.33,136.31,2.93]
[1764060135234,0.05304658,136.33,136.32,2.93]
[1764060136928,3.06304658,136.33,136.3,0.05524628]
[1764060137127,3.06304658,136.33,136.3,3.24524628]
[1764060137537,3.06304658,136.33,136.3,0.05524628]
[1764060137737,3.01,136.31,136.25,3.19]
[1764060138037,3.01,136.29,136.25,3.19]
[1764060138737,8.48811685,136.28,136.21,3.19]
[1764060138938,3.01,136.27,136.23,3.23899427]
[1764060141033,3.01,136.27,136.24,3.19]
[1764060144442,3.01,136.27,136.23,0.04899427]
[1764060144644,3.01,136.27,136.23,3.23899427]
[1764060153148,3.01,136.27,136.24,3.19]
[1764060153446,0.0515972,136.28,136.24,6.50458763]
[1764060153746,0.0515972,136.28,136.25,3.19]
[1764060154348,0.0515972,136.28,136.27,3.19]
[1764060154846,0.0515972,136.28,136.26,6.65687752]
[1764060154847,3.01,136.32,136.3,3.19]
[1764060155047,3.01,136.32,136.25,3.19]
[1764060155243,9.6144,136.32,136.25,3.19]
[1764060155649,9.6144,136.32,136.28,3.19]
[1764060155953,0.05002212,136.3,136.28,3.19]
[1764060164249,0.05002212,136.3,136.29,3.19]
[1764060172765,3.02,136.35,136.31,3.11]
[1764060173964,0.04405367,136.34,136.32,3.16015894]
[1764060174160,0.04405367,136.34,136.33,3.11]
[1764060178162,3.06405367,136.34,136.32,0.05015894]
[1764060178465,0.04405367,136.34,136.32,3.16015894]
[1764060180057,0.04405367,136.34,136.32,9.76445894]
[1764060180257,0.04405367,136.34,136.33,2.98]
[1764060180660,3.05405367,136.34,136.32,0.05015894]
[1764060181054,9.65755367,136.34,136.32,0.05015894]
[1764060181256,3.01,136.33,136.32,0.05015894]
[1764060186859,0.04405367,136.34,136.32,0.05015894]
[1764060187064,0.04405367,136.34,136.32,3.03015894]
[1764060187468,3.05405367,136.34,136.32,3.03015894]
[1764060188865,0.04405367,136.34,136.32,3.03015894]
[1764060189566,0.04405367,136.34,136.32,9.63445894]
[1764060189761,0.04405367,136.34,136.33,2.98]
[1764060193567,3.05405367,136.34,136.32,9.63445894]
[1764060193961,0.04405367,136.34,136.32,9.63445894]
[1764060194173,0.04405367,136.34,136.33,2.98]
[1764060198270,0.04405367,136.34,136.32,3.00015894]
[1764060199176,3.24405367,136.34,136.32,3.00015894]
[1764060200177,3.24405367,136.34,136.32,0.05015894]
[1764060201069,9.84755367,136.34,136.32,0.05015894]
[1764060201478,3.2,136.33,136.32,0.05015894]
[1764060202969,3.2,136.33,136.28,5.07106671]
[1764060203173,3.2,136.31,136.29,2.95]
[1764060204076,3.2,136.31,136.29,3.00082958]
[1764060205478,3.2,136.31,136.29,9.60662958]
[1764060210582,0.04405367,136.34,136.31,2.95]
[1764060210878,3.24405367,136.34,136.31,2.95]
[1764060211179,3.24405367,136.34,136.31,9.5548]
[1764060211480,3.2,136.32,136.29,3.00082958]
[1764060211984,3.2,136.32,136.29,0.05082958]
[1764060214387,3.2,136.32,136.29,6.65652958]
[1764060215782,3.2,136.32,136.29,0.05082958]
[1764060216489,3.2,136.29,136.23,2.95]
[1764060216686,3.2,136.31,136.25,2.95]
[1764060216879,3.2,136.31,136.27,2.95]
[1764060217081,3.2,136.33,136.29,2.95]
[1764060217585,0.05323399,136.32,136.31,9.5545]
[1764060217785,3.2,136.35,136.31,9.5545]
[1764060217786,0.04995279,136.33,136.31,9.5545]
[1764060218283,0.04995279,136.33,136.32,2.95]
[1764060220580,3.24995279,136.33,136.3,3.00189451]
[1764060221786,0.04995279,136.33,136.3,3.00189451]
[1764060222086,0.04995279,136.33,136.31,2.95]
[1764060224083,0.04995279,136.33,136.31,9.5548]
[1764060224485,0.04995279,136.33,136.32,2.95]
[1764060227395,3.24995279,136.33,136.3,0.05189451]
[1764060227595,3.24995279,136.33,136.3,3.19189451]
[1764060227892,0.04995279,136.33,136.3,3.19189451]
[1764060228285,0.04995279,136.33,136.31,3.14]
[1764060228486,0.04995279,136.33,136.32,3.14]
[1764060229291,0.04995279,136.33,136.32,5.26106671]
[1764060231689,0.04995279,136.33,136.32,3.14]
[1764060231895,3.24995279,136.33,136.31,3.14]
[1764060232603,0.04995279,136.33,136.31,3.14]
[1764060233089,3.24995279,136.33,136.31,3.14]
[1764060236102,0.04995279,136.33,136.31,3.14]
[1764060238103,0.04995279,136.33,136.31,9.7447]
[1764060238402,0.04995279,136.33,136.32,3.14]
[1764060240605,0.04995279,136.33,136.32,11.86546671]
[1764060240806,5.40815421,136.36,136.33,3.14]
[1764060241098,3.2,136.38,136.33,3.14]
[1764060241298,5.40872107,136.37,136.33,3.14]
[1764060241601,6.6015,136.38,136.33,9.7436]
[1764060241799,5.45520445,136.37,136.34,3.18990029]
[1764060242005,0.04748503,136.37,136.35,3.14]
[1764060242504,0.04748503,136.37,136.35,9.7429]
[1764060242705,0.04748503,136.37,136.36,3.14]
[1764060256413,0.04748503,136.37,136.34,3.17990029]
[1764060257512,9.70948503,136.37,136.34,3.17990029]
[1764060260215,3.06,136.36,136.34,3.17990029]
[1764060260606,9.70948503,136.37,136.34,3.17990029]
[1764060261005,6.64948503,136.37,136.34,3.17990029]
[1764060261212,0.04748503,136.37,136.34,3.17990029]
[1764060263116,0.04748503,136.37,136.35,3.18]
[1764060266121,3.10748503,136.37,136.35,3.18]
[1764060266317,0.04748503,136.37,136.35,3.18]
[1764060269924,3.10748503,136.37,136.34,3.22990029]
[1764060270226,0.04748503,136.37,136.34,3.22990029]
[1764060273531,6.64948503,136.37,136.34,3.22990029]
[1764060274126,9.6624,136.36,136.34,0.04990029]
[1764060274529,3.06,136.35,136.34,0.04990029]
[1764060274918,6.6034,136.34,136.32,3.18]
[1764060275731,3.06,136.35,136.32,3.18]
[1764060275931,3.06,136.35,136.32,3.23279457]
[1764060277230,9.663,136.35,136.32,3.23279457]
[1764060277524,0.04748503,136.37,136.32,3.23279457]
[1764060277525,9.6635,136.34,136.32,3.23279457]
[1764060277730,3.06,136.33,136.32,0.05279457]
[1764060281537,9.71322616,136.34,136.32,3.23279457]
[1764060282833,3.06,136.33,136.32,0.05279457]
[1764060285133,3.06,136.31,136.25,3.18]
[1764060286037,0.05099923,136.29,136.28,3.18]
[1764060295151,3.25099923,136.29,136.27,3.17334843]
[1764060296655,0.05099923,136.29,136.27,3.17334843]
[1764060298142,0.05099923,136.29,136.28,3.04]
[1764060305154,2.97,136.35,136.3,3.04]
[1764060305550,9.5738,136.34,136.3,3.04]
[1764060306352,9.6231424,136.33,136.31,3.09573886]
[1764060306743,2.97,136.32,136.31,0.05573886]
[1764060307545,2.97,136.32,136.27,3.04]
[1764060308554,2.97,136.3,136.28,3.09090816]
[1764060308853,9.5754,136.3,136.28,3.09090816]
[1764060309059,2.97,136.29,136.24,3.04]
[1764060309556,9.5768,136.27,136.24,3.04]
[1764060309751,2.97,136.26,136.24,3.04]
[1764060309953,6.6068,136.27,136.24,3.08744503]
[1764060310150,0.05230052,136.26,136.24,3.08744503]
[1764060311965,3.02230052,136.26,136.24,3.08744503]
[1764060313663,0.05230052,136.26,136.24,3.08744503]
[1764060316168,3.02230052,136.26,136.24,0.04744503]
[1764060316464,9.62970052,136.26,136.24,0.04744503]
[1764060316668,2.97,136.25,136.24,0.04744503]
[1764060319874,2.97,136.25,136.19,25.04]
[1764060319875,3.14,136.23,136.16,2.12437382]
[1764060320779,0.05329849,136.21,136.18,0.05135958]
[1764060321164,3.19329849,136.21,136.18,0.05135958]